bitfinex/quotes_SOLUSD_20251025
["timestamp","ask_amount","ask_price","bid_price","bid_amount"]
[1761406562188,83.29819112,192.07,192.04,0.77]
[1761406562366,4.36307163,192.05,192.04,0.77]
[1761406562568,7.81448367,192.05,192.04,0.77]
[1761406564493,13.02146101,192.05,192.04,0.77]
[1761406564786,13.06096111,192.05,192.04,0.77]
[1761406566270,35.94096111,192.05,192.04,0.77]
[1761406569085,31.57763679,192.05,192.04,0.77]
[1761406577578,31.57763679,192.05,192.04,0.1]
[1761406577786,31.57763679,192.05,192.04,0.77]
[1761406583090,31.57787042,192.05,192.04,0.77]
[1761406587905,31.57787042,192.05,192.04,0.1]
[1761406588395,31.57787042,192.05,192.04,0.82]
[1761406588696,31.57787042,192.05,192.04,0.1]
[1761406589999,31.57787042,192.05,192.04,0.82]
[1761406591312,31.57787042,192.05,192.04,0.1]
[1761406593545,31.57787042,192.05,192.04,0.82]
[1761406594723,31.57922802,192.05,192.04,0.82]
[1761406601226,31.57922802,192.05,192.04,0.1]
[1761406601419,32.23922802,192.05,192.04,0.1]
[1761406601726,31.57922802,192.05,192.04,0.1]
[1761406602528,31.57922802,192.05,192.04,0.82]
[1761406602708,32.23922802,192.05,192.04,0.1]
[1761406603302,31.57922802,192.05,192.04,0.1]
[1761406607505,33.66359267,192.05,192.04,0.1]
[1761406610627,34.32359267,192.05,192.04,0.1]
[1761406611124,33.66359267,192.05,192.04,0.1]
[1761406616741,31.57922802,192.05,192.04,0.1]
[1761406620533,31.57922802,192.05,192.04,0.78]
[1761406621040,33.66359267,192.05,192.04,0.1]
[1761406622839,31.57922802,192.05,192.04,0.1]
[1761406623013,33.66359267,192.05,192.04,0.1]
[1761406623816,33.66359267,192.05,192.04,0.78]
[1761406623817,2.05225068,192.05,192.04,0.78]
[1761406624023,2.05225068,192.05,192.04,5.98724848]
[1761406624233,2.05225068,192.05,192.04,8.07096165]
[1761406624623,2.05225068,192.05,192.04,2.86371317]
[1761406627936,2.05225068,192.05,192.04,2.18371317]
[1761406628138,2.05225068,192.05,192.04,0.1]
[1761406628816,2.05225068,192.05,192.04,0.28]
[1761406630620,46.39279917,192.09,192.04,0.28]
[1761406630621,5.30748582,192.09,192.05,10.87647521]
[1761406630842,4.36531335,192.1,192.06,43.44098413]
[1761406631040,4.36531335,192.11,192.07,0.18]
[1761406631443,5.82300871,192.18,192.16,22.88]
[1761406631738,11.84601743,192.28,192.16,22.88]
[1761406631739,0.92,192.26,192.17,36.12]
[1761406631944,0.92,192.26,192.11,22.88]
[1761406631945,0.2,192.26,192.11,22.88]
[1761406632119,0.2,192.26,192.17,8.73451307]
[1761406632315,0.2,192.26,192.18,61.97307695]
[1761406632947,0.2,192.28,192.26,22.88]
[1761406633137,0.2,192.28,192.27,36.32]
[1761406633322,0.2,192.28,192.21,36.38]
[1761406633636,0.2,192.28,192.27,12.95823637]
[1761406633836,0.2,192.28,192.27,49.35823637]
[1761406634038,0.2,192.28,192.27,38.48176116]
[1761406634342,0.2,192.28,192.27,43.68278055]
[1761406634650,0.2,192.37,192.3,50.0]
[1761406634869,0.2,192.37,192.34,33.75647521]
[1761406635020,0.2,192.37,192.35,47.51647521]
[1761406635447,1e-08,192.39,192.38,83.75647521]
[1761406636425,1e-08,192.39,192.38,38.95452074]
[1761406637344,1e-08,192.39,192.38,5.19804553]
[1761406638129,1e-08,192.39,192.37,5.19817067]
[1761406638329,1e-08,192.39,192.35,43.91777894]
[1761406640340,1e-08,192.39,192.35,38.71916417]
[1761406642327,1e-08,192.39,192.35,36.64]
[1761406642743,1e-08,192.39,192.36,15.60346396]
[1761406651428,0.67000001,192.39,192.26,60.87647521]
[1761406651631,16.27427558,192.39,192.32,15.60427557]
[1761406651831,16.27427558,192.39,192.32,52.36427557]
[1761406652736,16.27427558,192.39,192.32,57.56376458]
[1761406652737,21.47221012,192.39,192.32,57.56376458]
[1761406655253,16.27427558,192.39,192.32,57.56376458]
[1761406655560,0.67000001,192.39,192.32,41.95948901]
[1761406655739,0.67000001,192.39,192.33,15.60346396]
[1761406655939,5.86780115,192.39,192.33,15.60346396]
[1761406657238,0.67,192.38,192.33,15.60346396]
[1761406658339,0.67,192.38,192.33,20.80283849]
[1761406660854,5.8681077,192.38,192.33,15.60346396]
[1761406661449,1e-08,192.39,192.33,20.8028019]
[1761406661654,22.88000001,192.39,192.33,20.8028019]
[1761406661841,23.55000001,192.39,192.33,5.19933794]
[1761406662041,0.67,192.38,192.33,5.19933794]
[1761406662241,0.67,192.38,192.34,15.60346396]
[1761406662838,0.67,192.38,192.32,36.76]
[1761406663160,0.67,192.38,192.32,52.36508725]
[1761406663361,0.67,192.38,192.32,36.76]
[1761406663772,0.67,192.38,192.32,52.36508725]
[1761406663950,5.8681616,192.38,192.32,57.564649]
[1761406664256,5.8681616,192.38,192.3,5.20018073]
[1761406664447,0.67,192.37,192.3,5.20018073]
[1761406664767,0.67,192.37,192.31,15.60671088]
[1761406665459,5.86843123,192.37,192.31,20.80657065]
[1761406666341,0.67,192.36,192.31,5.19985977]
[1761406667856,5.86872486,192.36,192.3,5.200208]
[1761406668252,0.67,192.35,192.3,5.200208]
[1761406676147,3.45835912,192.34,192.3,5.200208]
[1761406676346,3.45835912,192.33,192.3,5.200208]
[1761406676564,3.45835912,192.34,192.3,5.200208]
[1761406676764,3.45835912,192.33,192.3,5.200208]
[1761406676948,3.45835912,192.34,192.3,5.200208]
[1761406677148,3.45835912,192.33,192.3,5.200208]
[1761406677367,0.72,192.33,192.3,5.200208]
[1761406680347,0.71,192.36,192.3,5.200208]
[1761406680552,3.48135955,192.35,192.3,5.200208]
[1761406680853,3.48135955,192.34,192.3,5.200208]
[1761406681070,3.48135955,192.33,192.3,5.200208]
[1761406681371,0.71,192.35,192.3,5.200208]
[1761406681564,3.48198868,192.34,192.3,5.200208]
[1761406681768,3.48198868,192.33,192.3,5.200208]
[1761406681975,0.71,192.35,192.3,5.200208]
[1761406682159,3.48198868,192.34,192.3,5.200208]
[1761406682361,3.48198868,192.33,192.3,5.200208]
[1761406682564,5.19804553,192.38,192.3,5.200208]
[1761406682750,0.71,192.34,192.3,5.200208]
[1761406682950,3.48275027,192.33,192.3,5.200208]
[1761406683152,4.19328795,192.33,192.3,5.200208]
[1761406683368,0.71,192.33,192.3,5.200208]
[1761406684273,4.19328795,192.33,192.3,5.200208]
[1761406684471,0.71,192.33,192.3,5.200208]
[1761406684860,4.19328795,192.33,192.3,5.200208]
[1761406685061,0.71,192.33,192.3,5.200208]
[1761406686665,3.48520752,192.34,192.3,5.200208]
[1761406686854,4.19520752,192.34,192.3,5.200208]
[1761406687175,28.07832873,192.37,192.3,5.200208]
[1761406687176,0.71,192.33,192.3,5.200208]
[1761406687558,3.48517542,192.36,192.3,5.200208]
[1761406687759,0.71,192.34,192.3,5.200208]
[1761406701792,0.71,192.34,192.3,18.20072802]
[1761406703887,4.19517542,192.36,192.3,18.20072802]
[1761406704196,3.48517542,192.35,192.3,18.20072802]
[1761406704693,0.71,192.34,192.3,18.20072802]
[1761406704897,4.19517542,192.34,192.3,18.20072802]
[1761406705097,0.71,192.34,192.3,18.20072802]
[1761406705263,3.48517542,192.36,192.3,18.20072802]
[1761406705264,0.71,192.33,192.3,18.20072802]
[1761406707378,4.19517542,192.33,192.3,18.20072802]
[1761406707578,0.71,192.33,192.3,18.20072802]
[1761406707795,3.48517542,192.35,192.3,18.20072802]
[1761406708012,3.48517542,192.34,192.3,18.20072802]
[1761406708173,22.88,192.37,192.3,18.20072802]
[1761406708375,3.49462713,192.36,192.3,18.20072802]
[1761406708671,3.49462713,192.35,192.3,18.20072802]
[1761406708870,3.49462713,192.34,192.3,18.20072802]
[1761406709081,23.59,192.37,192.3,18.20072802]
[1761406709281,9.55477448,192.39,192.3,18.20072802]
[1761406709282,3.49702774,192.36,192.31,10.87647521]
[1761406709497,3.49702774,192.35,192.34,5.19912654]
[1761406711004,4.20702774,192.35,192.34,5.19912654]
[1761406711409,3.49702774,192.35,192.34,5.19912654]
[1761406712087,3.49702774,192.35,192.33,5.19939686]
[1761406712287,3.49702774,192.34,192.33,5.19939686]
[1761406715013,3.49592458,192.34,192.33,5.19939686]
[1761406725301,4.20592458,192.34,192.33,5.19939686]
[1761406725519,3.49592458,192.34,192.33,5.19939686]
[1761406728518,4.20592458,192.34,192.33,5.19939686]
[1761406729329,3.49592458,192.34,192.33,16.07587207]
[1761406729636,3.49592458,192.36,192.34,10.87647521]
[1761406729830,3.49592458,192.35,192.34,10.87647521]
[1761406730029,3.49592458,192.35,192.34,47.19647521]
[1761406730517,4.15592458,192.35,192.34,36.32]
[1761406731627,0.66,192.35,192.34,41.51912654]
[1761406737035,0.66,192.37,192.34,41.51912654]
[1761406755429,0.69,192.38,192.34,41.51912654]
[1761406755650,0.69,192.38,192.34,54.5169429]
[1761406760655,22.88000001,192.39,192.34,54.5169429]
[1761406760853,0.68,192.38,192.34,54.5169429]
[1761406798091,4.17787291,192.38,192.34,54.5169429]
[1761406798993,0.69,192.37,192.34,54.5169429]
[1761406806810,0.69,192.37,192.35,8.73981151]
[1761406807012,0.69,192.37,192.36,41.29858598]
[1761406812530,1e-08,192.39,192.37,10.87647521]
[1761406812699,1e-08,192.39,192.38,46.97647521]
[1761406813295,1e-08,192.39,192.38,55.67283952]
[1761406823512,4.19382178,192.43,192.42,10.87647521]
[1761406823513,1e-08,192.43,192.42,10.87647521]
[1761406823719,1e-08,192.43,192.42,46.95647521]
[1761406824425,1e-08,192.43,192.42,49.03574746]
[1761406824723,0.2,192.44,192.42,49.03574746]
[1761406824902,0.9,192.44,192.42,49.03574746]
[1761406825103,0.9,192.44,192.42,46.95647521]
[1761406825301,0.9,192.44,192.43,16.07317011]
[1761406825505,0.9,192.44,192.43,20.4453413]
[1761406825911,0.2,192.44,192.43,20.4453413]
[1761406832031,0.9,192.44,192.43,20.4453413]
[1761406833822,0.2,192.44,192.43,20.4453413]
[1761406835924,0.9,192.44,192.43,20.4453413]
[1761406836124,0.9,192.44,192.43,9.56886609]
[1761406836737,0.2,192.44,192.43,20.4453413]
[1761406838444,0.9,192.44,192.43,20.4453413]
[1761406839040,0.2,192.44,192.43,20.4453413]
[1761406840421,0.9,192.44,192.43,20.4453413]
[1761406845120,0.2,192.44,192.43,20.4453413]
[1761406850829,0.91,192.44,192.43,20.4453413]
[1761406851829,3.48948777,192.45,192.43,20.4453413]
[1761406852038,0.71,192.47,192.44,46.93647521]
[1761406852234,3.48948777,192.46,192.44,46.93647521]
[1761406852435,3.48948777,192.45,192.44,51.3086464]
[1761406852648,3.48948777,192.46,192.44,51.3086464]
[1761406852942,3.48948777,192.45,192.44,51.3086464]
[1761406853248,3.48948777,192.46,192.45,16.07263005]
[1761406854550,3.48948777,192.46,192.45,20.44480124]
[1761406858529,3.48948777,192.47,192.45,20.44480124]
[1761406858728,0.71,192.48,192.47,10.87647521]
[1761406858929,3.49206163,192.48,192.47,10.87647521]
[1761406859427,4.17206163,192.48,192.47,10.87647521]
[1761406860357,4.17206163,192.48,192.47,16.07209011]
[1761406866656,0.68,192.48,192.47,16.07209011]
[1761406880380,0.68,192.48,192.47,5.1956149]
[1761406891663,0.68,192.48,192.46,41.25581657]
[1761406916301,0.72,192.5,192.46,54.24552871]
[1761406932915,23.58,192.54,192.47,10.87647521]
[1761406933210,0.7,192.53,192.48,36.04]
[1761406933797,0.7,192.53,192.48,51.63130005]
[1761406934411,0.7,192.53,192.49,5.19507506]
[1761406934712,0.7,192.53,192.5,36.04]
[1761406937304,0.7,192.53,192.51,5.19453534]
[1761406938719,4.19380614,192.55,192.52,36.04]
[1761406938914,0.7,192.55,192.52,36.04]
[1761406939420,0.7,192.56,192.52,36.04]
[1761406940322,0.7,192.56,192.53,5.19399574]
[1761406941916,3.49380614,192.58,192.53,5.19399574]
[1761406942123,4.15380614,192.57,192.53,5.19399574]
[1761406942329,0.66,192.57,192.53,5.19399574]
[1761406942500,4.15380614,192.57,192.53,5.19399574]
[1761406942695,0.66,192.57,192.53,5.19399574]
[1761406944521,0.66,192.57,192.53,18.17898509]
[1761406944918,0.66,192.57,192.53,33.76623471]
[1761406945436,0.66,192.57,192.53,18.17898509]
[1761406945596,0.66,192.57,192.53,33.76542488]
[1761406946020,0.66,192.57,192.53,18.17898509]
[1761406946403,0.66,192.57,192.54,3.49380614]
[1761406946607,0.66,192.57,192.55,36.02]
[1761406946822,0.66,192.57,192.56,5.19318653]
[1761406947018,3.49380614,192.58,192.56,5.19318653]
[1761406947215,4.15380614,192.58,192.56,5.19318653]
[1761406948008,3.49380614,192.58,192.56,5.19318653]
[1761406948315,0.66,192.57,192.56,5.19318653]
[1761406948615,3.49380614,192.58,192.56,5.19318653]
[1761406948811,4.15380614,192.58,192.56,5.19318653]
[1761406949323,3.49380614,192.58,192.56,5.19318653]
[1761406949531,0.66,192.57,192.56,5.19318653]
[1761406949911,4.35380614,192.59,192.56,5.19318653]
[1761406950116,3.49380614,192.58,192.56,5.19318653]
[1761406950431,0.86,192.59,192.56,5.19318653]
[1761406950432,0.86,192.59,192.56,8.68699267]
[1761406950620,4.35380614,192.59,192.56,8.68699267]
[1761406950929,0.86,192.59,192.56,8.68699267]
[1761406951111,4.35380614,192.59,192.56,8.68699267]
[1761406951317,0.2,192.59,192.57,16.06939207]
[1761406951516,0.2,192.59,192.58,36.02]
[1761406952319,0.2,192.59,192.58,41.21264721]
[1761406954735,0.2,192.59,192.58,45.55546498]
[1761406956016,0.2,192.59,192.58,41.21264721]
[1761406960242,0.2,192.59,192.58,44.70645335]
[1761406960456,0.2,192.59,192.58,41.21264721]
[1761406964134,0.86,192.59,192.58,41.21264721]
[1761406964330,0.2,192.59,192.58,41.21264721]
[1761406964645,0.86,192.59,192.58,41.19264721]
[1761406966447,0.86,192.59,192.56,36.0]
[1761406966749,0.66,192.58,192.56,36.0]
[1761406968244,0.66,192.58,192.56,41.19309445]
[1761406984757,0.2,192.59,192.56,41.19309445]
[1761406984758,0.2,192.59,192.56,54.17606079]
[1761406986762,0.66,192.58,192.57,36.0]
[1761406987638,0.66,192.58,192.57,41.19291686]
[1761406990984,0.66,192.58,192.51,36.0]
[1761406991157,0.66,192.58,192.52,36.0]
[1761406991158,9.33716706,192.58,192.52,36.0]
[1761406991677,0.66,192.57,192.52,36.0]
[1761406992257,0.66,192.57,192.52,41.19403511]
[1761406993745,5.85292994,192.57,192.5,5.19461092]
[1761406993959,5.85292994,192.57,192.5,41.19461092]
[1761406994167,14.52998061,192.56,192.5,41.19461092]
[1761406994553,0.66,192.55,192.5,41.19461092]
[1761406998549,5.8534799,192.55,192.46,12.98931563]
[1761406998752,5.8534799,192.55,192.47,36.0]
[1761406998954,0.66,192.54,192.47,36.0]
[1761406999172,14.52998061,192.54,192.47,36.0]
[1761406999660,0.66,192.53,192.47,41.19540744]
[1761407003080,22.88,192.49,192.45,12.40025656]
[1761407003291,0.7,192.48,192.45,12.40025656]
[1761407003588,43.66880744,192.52,192.45,12.40025656]
[1761407003882,0.7,192.49,192.45,12.40025656]
[1761407024271,5.89519948,192.49,192.45,7.20413738]
[1761407024802,0.7,192.48,192.45,7.20413738]
[1761407027575,16.29454191,192.48,192.45,7.20413738]
[1761407028017,0.7,192.47,192.45,7.20413738]
[1761407030508,15.59778511,192.46,192.45,7.20413738]
[1761407030986,16.27778511,192.46,192.45,7.20413738]
[1761407031984,21.47366996,192.46,192.45,7.20413738]
[1761407032586,21.47366996,192.46,192.42,36.0]
[1761407032902,5.87623058,192.45,192.37,12.99527534]
[1761407033110,5.87623058,192.45,192.38,36.0]
[1761407033288,0.68,192.44,192.38,36.0]
[1761407033690,16.28102966,192.44,192.38,36.0]
[1761407034206,0.68,192.43,192.38,36.0]
[1761407035106,15.60102966,192.42,192.38,36.0]
[1761407035608,0.68,192.41,192.38,36.0]
[1761407036996,0.68,192.41,192.37,5.19829237]
[1761407036997,5.8772645,192.41,192.37,36.0]
[1761407037515,0.68,192.4,192.37,36.0]
[1761407038291,15.60427557,192.39,192.37,36.0]
[1761407039614,0.7,192.38,192.37,36.0]
[1761407040193,35.87178006,192.43,192.37,36.0]
[1761407040194,22.88,192.43,192.37,36.0]
[1761407040390,0.7,192.39,192.37,36.0]
[1761407042027,16.30427557,192.39,192.37,36.0]
[1761407042530,0.7,192.38,192.37,36.0]
[1761407043510,0.7,192.38,192.34,5.19912654]
[1761407043700,0.7,192.38,192.35,36.02]
[1761407044697,0.7,192.38,192.31,22.88]
[1761407044698,28.77812209,192.38,192.31,5.1999376]
[1761407044896,0.7,192.37,192.32,36.02]
[1761407045096,16.30427557,192.37,192.32,36.02]
[1761407045295,21.50262905,192.37,192.32,41.21966438]
[1761407045502,0.7,192.36,192.32,36.02]
[1761407046298,15.60752282,192.35,192.32,36.02]
[1761407046498,0.7,192.36,192.32,36.02]
[1761407046813,0.7,192.35,192.32,36.02]
[1761407047200,3.48728265,192.34,192.27,13.00216199]
[1761407047389,3.48728265,192.33,192.28,36.02]
[1761407047591,0.7,192.34,192.28,36.02]
[1761407047816,3.48223437,192.33,192.28,36.02]
[1761407048005,0.7,192.35,192.28,36.02]
[1761407048206,3.48223444,192.34,192.28,36.02]
[1761407048420,3.48223444,192.33,192.29,5.20047844]
[1761407048590,4.18223444,192.34,192.29,5.20047844]
[1761407048796,3.48223444,192.33,192.29,5.20047844]
[1761407049105,4.18223444,192.33,192.29,5.20047844]
[1761407049414,0.7,192.32,192.29,5.20047844]
[1761407065119,0.7,192.32,192.27,18.20349572]
[1761407065321,0.7,192.32,192.28,36.02]
[1761407067324,0.7,192.32,192.29,5.20047844]
[1761407068521,16.29914696,192.34,192.29,18.20167455]
[1761407068713,0.69,192.34,192.29,18.20167455]
[1761407068907,0.69,192.33,192.29,18.20167455]
[1761407070930,0.69,192.33,192.29,5.20047844]
[1761407081323,4.15230969,192.33,192.29,5.20047844]
[1761407081526,0.69,192.33,192.29,5.20047844]
[1761407081719,0.69,192.32,192.29,5.20047844]
[1761407083633,4.15230969,192.32,192.29,5.20047844]
[1761407083832,0.69,192.32,192.29,5.20047844]
[1761407084232,4.15230969,192.32,192.29,5.20047844]
[1761407084436,0.69,192.32,192.29,5.20047844]
[1761407084633,0.69,192.31,192.29,5.20047844]
[1761407087733,4.16341392,192.31,192.29,5.20047844]
[1761407087936,0.69,192.31,192.29,5.20047844]
[1761407088122,20.80801158,192.35,192.29,5.20047844]
[1761407088123,0.69,192.3,192.29,5.20047844]
[1761407089543,4.16852531,192.3,192.29,5.20047844]
[1761407097943,4.16852531,192.3,192.28,41.22072342]
[1761407098142,4.13852531,192.29,192.28,41.22072342]
[1761407099535,3.47852531,192.29,192.28,41.22072342]
[1761407106967,3.47852531,192.29,192.28,45.54861053]
[1761407109471,4.13852531,192.29,192.28,45.54861053]
[1761407112672,3.47852531,192.29,192.28,56.42508574]
[1761407113051,4.13852531,192.29,192.28,56.42508574]
[1761407114374,4.13852531,192.29,192.28,45.54861053]
[1761407115545,4.13852531,192.29,192.28,40.34788711]
[1761407116152,4.13852531,192.29,192.28,4.32788711]
[1761407116351,4.13852531,192.29,192.26,36.02]
[1761407116564,8.50650706,192.28,192.26,36.02]
[1761407116854,3.47852531,192.27,192.26,36.02]
[1761407117066,3.47852531,192.27,192.24,0.1]
[1761407117067,9.33961777,192.27,192.25,15.61239624]
[1761407117268,4.13852531,192.26,192.25,15.61239624]
[1761407117468,4.13852531,192.26,192.24,0.1]
[1761407117671,4.13852531,192.25,192.24,0.1]
[1761407124884,0.66,192.25,192.24,0.1]
[1761407127484,4.14413473,192.25,192.24,0.1]
[1761407131086,3.48413473,192.25,192.24,0.1]
[1761407132388,3.48413473,192.25,192.24,5.30183104]
[1761407133182,4.15413473,192.25,192.24,5.30183104]
[1761407136779,3.48413473,192.25,192.24,5.30183104]
[1761407137584,4.15413473,192.25,192.24,5.30183104]
[1761407141192,4.15413473,192.25,192.24,0.1]
[1761407154911,3.48413473,192.25,192.24,0.1]
[1761407155097,3.48413473,192.25,192.24,5.30183104]
[1761407156111,3.48413473,192.25,192.24,41.32183104]
[1761407158193,3.48413473,192.25,192.24,45.67699945]
[1761407168424,3.48413473,192.25,192.24,41.32183104]
[1761407169222,0.71,192.27,192.24,41.32183104]
[1761407169522,3.49442507,192.26,192.24,46.52236293]
[1761407169726,0.71,192.27,192.24,46.52236293]
[1761407169904,3.49442507,192.26,192.24,46.52236293]
[1761407170226,5.20053189,192.29,192.24,46.52236293]
[1761407170425,4.20405607,192.28,192.24,46.52236293]
[1761407170643,4.20405607,192.28,192.24,41.32053189]
[1761407170644,3.49405607,192.27,192.24,41.32053189]
[1761407170926,3.49405607,192.26,192.24,41.32053189]
[1761407171114,0.71,192.28,192.24,41.32053189]
[1761407171313,3.49374324,192.27,192.24,41.32053189]
[1761407171512,3.49374324,192.26,192.24,41.32053189]
[1761407171816,0.71,192.28,192.24,41.32053189]
[1761407172013,3.49385368,192.27,192.24,41.32053189]
[1761407172311,3.49385368,192.26,192.24,36.12]
[1761407172498,28.79082143,192.28,192.24,36.12]
[1761407172702,4.20358614,192.27,192.24,36.12]
[1761407172902,3.49358614,192.26,192.24,36.12]
[1761407173129,3.49358614,192.25,192.24,36.12]
[1761407182442,2.19319603,192.25,192.24,36.12]
[1761407185440,2.19319603,192.25,192.24,41.32183104]
[1761407186546,2.19319603,192.25,192.24,50.87741102]
[1761407187544,0.68,192.28,192.24,50.87741102]
[1761407189136,0.68,192.28,192.24,41.32183104]
[1761407190348,0.68,192.28,192.24,46.5223683]
[1761407190654,0.68,192.28,192.24,10.5023683]
[1761407190828,0.68,192.28,192.25,36.0]
[1761407193745,0.68,192.28,192.25,41.20132054]
[1761407194449,3.4974685,192.27,192.25,41.20132054]
[1761407194649,3.4974685,192.26,192.25,41.20132054]
[1761407196028,3.4974685,192.26,192.25,45.57070303]
[1761407204431,3.50013005,192.26,192.25,45.57070303]
[1761407212851,4.17013005,192.26,192.25,45.57070303]
[1761407213053,3.50013005,192.26,192.25,45.57070303]
[1761407214647,4.17013005,192.26,192.25,45.57070303]
[1761407216668,4.17013005,192.26,192.25,40.36938249]
[1761407217166,4.17013005,192.26,192.25,45.57094295]
[1761407217669,4.17013005,192.26,192.25,40.36938249]
[1761407218352,4.17013005,192.26,192.25,45.57094295]
[1761407227277,4.17013005,192.26,192.24,0.1]
[1761407227484,4.17013005,192.25,192.24,0.1]
[1761407228767,4.17013005,192.25,192.24,15.71402139]
[1761407229177,4.17013005,192.25,192.24,20.91585243]
[1761407229383,3.50013005,192.25,192.24,21.58585243]
[1761407229881,3.50013005,192.25,192.24,20.91585243]
[1761407232084,3.50266517,192.25,192.24,20.91585243]
[1761407233385,3.50266517,192.25,192.24,15.71402139]
[1761407233567,4.17266517,192.25,192.24,15.71402139]
[1761407240697,4.17266517,192.25,192.24,0.1]
[1761407268998,3.50266517,192.25,192.24,0.1]
[1761407269727,4.20266517,192.25,192.24,0.1]
[1761407275213,3.50266517,192.25,192.24,5.99183104]
[1761407275521,3.50266517,192.25,192.24,21.60503981]
[1761407278928,3.50266517,192.25,192.24,20.91503981]
[1761407286139,3.50266517,192.25,192.24,21.58503981]
[1761407286514,3.50266517,192.25,192.24,20.91503981]
[1761407287013,3.50266517,192.25,192.24,32.46151502]
[1761407303048,0.68,192.28,192.24,32.46151502]
[1761407303227,3.50722685,192.27,192.25,46.83647521]
[1761407303428,3.50722685,192.26,192.25,46.83647521]
[1761407304046,3.50722685,192.26,192.25,52.03672523]
[1761407310577,4.16722685,192.26,192.25,3.59025002]
[1761407310735,9.36851676,192.26,192.24,0.1]
[1761407311043,22.88,192.23,192.18,0.1]
[1761407311245,3.50722685,192.22,192.18,0.1]
[1761407311553,0.47,192.22,192.18,0.1]
[1761407311757,6.07,192.21,192.18,0.1]
[1761407312158,22.88,192.23,192.18,0.1]
[1761407312346,0.47,192.24,192.19,0.78]
[1761407312653,3.50660902,192.23,192.2,2.08230302]
[1761407312854,5.67185514,192.24,192.21,35.96]
[1761407313056,3.97654832,192.23,192.21,35.96]
[1761407313276,0.47,192.23,192.21,35.96]
[1761407315368,0.47,192.24,192.21,35.96]
[1761407315551,3.50482174,192.23,192.21,35.96]
[1761407315865,0.47,192.24,192.21,35.96]
[1761407316162,3.5048215,192.23,192.21,35.96]
[1761407316365,0.47,192.24,192.21,35.96]
[1761407316566,3.50445623,192.23,192.21,35.96]
[1761407316766,0.47,192.24,192.21,35.96]
[1761407320357,37.96552781,192.26,192.21,35.96]
[1761407320358,138.16,192.28,192.22,0.68]
[1761407320565,3.97382396,192.27,192.22,0.68]
[1761407320884,3.50382396,192.26,192.22,0.68]
[1761407321165,3.50382396,192.25,192.22,0.68]
[1761407321372,3.50382396,192.24,192.22,0.68]
[1761407321664,5.67104822,192.27,192.22,16.29564687]
[1761407321866,3.50388461,192.26,192.22,16.29564687]
[1761407322068,3.50388461,192.25,192.23,0.68]
[1761407322258,3.50388461,192.24,192.23,0.68]
[1761407323066,3.50388461,192.24,192.22,20.81801774]
[1761407323260,5.67104822,192.27,192.22,21.49801774]
[1761407323564,3.50364684,192.26,192.22,21.49801774]
[1761407323759,3.50364684,192.25,192.22,21.49801774]
[1761407323969,3.50364684,192.24,192.22,21.49801774]
[1761407324266,5.67104822,192.27,192.23,0.68]
[1761407324468,3.97358978,192.26,192.22,21.49801774]
[1761407324665,3.50358978,192.25,192.22,21.49801774]
[1761407324860,3.50358978,192.24,192.23,0.68]
[1761407325040,3.50358978,192.24,192.22,20.81801774]
[1761407325244,5.67104822,192.27,192.23,0.68]
[1761407325550,3.50361946,192.26,192.22,20.81801774]
[1761407325865,3.50361946,192.25,192.22,21.49801774]
[1761407326068,3.50361946,192.24,192.23,0.68]
[1761407329570,22.88,192.28,192.23,5.88201762]
[1761407329763,3.50354144,192.27,192.24,35.96]
[1761407330072,3.50354144,192.26,192.24,36.62]
[1761407330264,3.50354144,192.25,192.24,35.96]
[1761407330852,3.50354144,192.25,192.24,41.82183104]
[1761407339078,3.50354144,192.25,192.24,52.69830625]
[1761407344874,3.50354144,192.25,192.24,16.73830625]
[1761407345279,3.50354144,192.25,192.24,52.69830625]
[1761407348481,3.50354144,192.25,192.24,16.73830625]
[1761407348682,3.50354144,192.25,192.24,52.69830625]
[1761407348877,3.50354144,192.25,192.24,16.73830625]
[1761407349188,3.50354144,192.25,192.24,52.69830625]
[1761407349358,3.50354144,192.25,192.24,16.73830625]